bitfinex/quotes_ETHUSD_20220112
["timestamp","ask_amount","ask_price","bid_price","bid_amount"]
[1641951763034,0.77366,3231.7,3231.3,0.00511581]
[1641951763234,0.07735,3231.6,3231.3,0.00511581]
[1641951763435,0.37735,3231.6,3231.3,0.00511581]
[1641951763686,1.15105,3231.6,3231.3,0.00511581]
[1641951764686,0.37735,3231.6,3231.3,0.00511581]
[1641951765891,0.37735,3231.6,3231.2,0.00568423]
[1641951766089,1.15102,3231.6,3231.2,0.00568423]
[1641951766289,1.07367,3231.6,3231.2,0.00568423]
[1641951767943,0.77367,3231.6,3231.2,0.00568423]
[1641951768344,0.77367,3231.6,3231.4,1.47427421]
[1641951768544,0.07735,3231.7,3231.4,1.91927421]
[1641951768746,0.37735,3231.8,3231.5,0.00397896]
[1641951768944,0.07735,3231.8,3231.5,0.00397896]
[1641951769748,0.07735,3231.8,3231.5,0.70017346]
[1641951770148,0.07735,3231.8,3231.6,0.00341054]
[1641951772588,0.3,3231.9,3231.6,0.00341054]
[1641951772989,0.77362,3232.0,3231.6,0.30341054]
[1641951773198,1.54719,3232.2,3231.7,3.49143491]
[1641951773199,0.07735,3232.2,3231.7,3.49143491]
[1641951773389,0.77465685,3232.4,3231.8,0.6961132]
[1641951773592,0.77465685,3232.4,3231.9,2.7607273]
[1641951773789,0.77465685,3232.4,3231.9,2.76243257]
[1641951773989,0.77465685,3232.4,3232.0,0.00113684]
[1641951774390,0.00113685,3232.4,3232.1,0.7734244]
[1641951774590,0.00113685,3232.4,3232.1,1.0734244]
[1641951774829,0.00113685,3232.4,3232.1,0.7734244]
[1641951775029,0.00113685,3232.4,3232.0,0.00113684]
[1641951775637,0.77463685,3232.4,3232.0,0.00113684]
[1641951776038,0.77463685,3232.4,3231.9,0.00170527]
[1641951776835,0.3,3232.3,3231.9,1.33856069]
[1641951777035,0.3,3232.3,3232.0,2.46712817]
[1641951777237,0.3,3232.3,3232.0,2.46826501]
[1641951777635,0.77463685,3232.4,3232.0,2.46826501]
[1641951777836,0.00113685,3232.4,3232.1,0.7734163]
[1641951778037,0.00113685,3232.4,3232.2,2.3704642]
[1641951778236,0.00113685,3232.4,3232.2,2.3242123]
[1641951778440,0.00113685,3232.4,3232.0,2.38292097]
[1641951778890,0.77463685,3232.4,3232.0,2.68292097]
[1641951781092,0.77463685,3232.4,3232.0,0.30113684]
[1641951781292,0.77463685,3232.4,3232.1,2.29391048]
[1641951781493,0.77463685,3232.4,3232.0,0.30113684]
[1641951781689,0.77463685,3232.4,3232.1,2.29934819]
[1641951781889,0.77463685,3232.4,3232.0,0.30113684]
[1641951783930,0.77463685,3232.4,3232.1,2.34710339]
[1641951785232,0.7735,3232.4,3232.1,2.34710339]
[1641951787594,0.07734,3233.0,3232.1,2.79210339]
[1641951787793,0.77338,3232.8,3232.1,2.79210339]
[1641951787994,0.0022737,3232.6,3232.1,2.79210339]
[1641951788396,0.00170527,3232.5,3232.1,2.79210339]
[1641951788796,0.72508527,3232.8,3232.4,0.7733545]
[1641951789003,0.72508527,3232.8,3232.4,1.0733545]
[1641951789195,0.00113685,3232.7,3232.5,2.288033]
[1641951790430,0.00113685,3232.7,3232.5,2.28542847]
[1641951790630,0.00113685,3232.7,3232.4,0.3]
[1641951790829,0.00113685,3232.7,3232.5,2.28278681]
[1641951791031,0.00113685,3232.7,3232.5,2.62794853]
[1641951791231,0.00113685,3232.7,3232.5,0.3]
[1641951791536,0.00113685,3232.7,3232.3,2.77099516]
[1641951793037,0.00113685,3232.7,3232.3,0.3]
[1641951793237,0.77349,3232.6,3232.3,0.2969]
[1641951793438,0.77349,3232.5,3232.2,2.28630315]
[1641951793894,0.77349,3232.5,3232.3,0.00113684]
[1641951795397,1.07349,3232.5,3232.3,0.00113684]
[1641951795796,1.07349,3232.5,3232.2,2.35682808]
[1641951796197,1.07349,3232.5,3232.3,0.00113684]
[1641951797469,1.07349,3232.5,3232.2,0.00170527]
[1641951797865,1.07349,3232.5,3232.2,2.28142094]
[1641951798267,1.07349,3232.5,3232.3,0.00113684]
[1641951798665,0.77349,3232.5,3232.3,0.00113684]
[1641951798865,0.77349,3232.5,3232.2,0.00170527]
[1641951799066,0.77349,3232.5,3232.3,0.00113684]
[1641951799270,0.77349,3232.5,3232.2,0.00170527]
[1641951800067,0.77349,3232.5,3232.1,0.00227369]
[1641951800270,1.2908343,3232.4,3232.1,0.00227369]
[1641951800471,3.9115943,3232.4,3232.1,0.00227369]
[1641951800669,0.77366,3232.2,3231.9,0.00341054]
[1641951800866,0.77366,3232.2,3231.6,4.9978]
[1641951800867,0.07735,3232.1,3231.7,0.00454739]
[1641951801487,0.77367,3232.0,3231.7,0.00454739]
[1641951802286,0.37735,3232.2,3231.5,0.00568423]
[1641951802689,0.77367,3232.0,3231.5,0.00568423]
[1641951802989,1.54733,3232.1,3231.3,0.00682108]
[1641951803391,1.54733,3232.1,3231.6,2.63694332]
[1641951803590,0.77369,3231.8,3231.6,2.63694332]
[1641951803790,0.77369,3231.8,3231.7,0.00454739]
[1641951804593,0.77369,3231.8,3231.5,0.00568423]
[1641951804827,0.77369,3231.7,3231.5,0.00568423]
[1641951805528,0.77369,3231.7,3231.3,0.00682108]
[1641951805727,0.77369,3231.7,3231.6,2.6369743]
[1641951806228,1.07369,3231.7,3231.6,2.64209011]
[1641951806430,0.77369,3231.7,3231.6,0.00511581]
[1641951806627,1.07369,3231.7,3231.6,0.00511581]
[1641951806829,1.07369,3231.7,3231.5,0.00568423]
[1641951807032,0.3,3231.6,3231.5,0.00568423]
[1641951807635,0.77369,3231.7,3231.2,0.0073895]
[1641951809683,0.77359,3232.1,3231.3,0.445]
[1641951809880,0.77359,3232.1,3231.3,0.745]
[1641951810079,0.77359,3232.1,3231.4,0.00625266]
[1641951810279,0.77359,3232.1,3231.4,3.04938316]
[1641951810478,0.77359,3232.1,3231.4,0.45125266]
[1641951810681,0.77359,3232.1,3231.5,2.20486423]
[1641951810981,0.77359,3232.1,3231.6,0.30511581]
[1641951811187,0.77359,3232.1,3231.6,0.38246581]
[1641951811381,0.77359,3232.1,3231.7,0.00454739]
[1641951811581,0.3839025,3232.0,3231.7,0.00454739]
[1641951812438,0.3839025,3232.0,3231.6,0.30511581]
[1641951812637,0.3839025,3232.0,3231.7,0.00454739]
[1641951813437,0.3839025,3232.0,3231.5,0.00568423]
[1641951813837,0.3839025,3232.0,3231.5,0.45068423]
[1641951814340,1.1575025,3232.0,3231.6,0.00511581]
[1641951817987,1.1575025,3232.0,3231.7,0.745]
[1641951818390,1.1575025,3232.0,3231.8,0.00397896]
[1641951818587,1.1575025,3232.0,3231.8,0.44897896]
[1641951818987,1.1575025,3232.0,3231.9,0.00341054]
[1641951819188,0.3839025,3232.0,3231.9,0.00341054]
[1641951822032,1.54727,3232.1,3231.9,0.00341054]
[1641951822432,0.77362,3232.2,3231.9,2.64018412]
[1641951822833,0.77362,3232.2,3232.0,0.00284211]
[1641951823433,0.07735,3232.4,3232.1,0.445]
[1641951823680,0.07734,3232.5,3232.1,0.745]
[1641951823880,0.07734,3232.5,3232.2,0.00170527]
[1641951824085,0.07734,3232.5,3232.2,0.44670527]
[1641951824488,0.07734,3232.5,3232.3,0.00113684]
[1641951824686,0.3,3232.6,3232.4,0.445]
[1641951825086,0.77346,3232.7,3232.4,0.745]
[1641951825390,0.72346,3232.7,3232.4,0.745]
[1641951825988,0.77349,3232.6,3232.4,0.745]
[1641951826588,0.72346,3232.7,3232.4,0.745]
[1641951831912,0.3,3232.6,3232.4,0.445]
[1641951832111,1.07349,3232.6,3232.3,0.00113684]
[1641951832312,1.54704,3232.5,3232.3,0.00113684]
[1641951832609,1.54704,3232.5,3232.1,0.00227369]
[1641951835234,0.77355,3232.4,3232.1,0.00227369]
[1641951835638,1.07355,3232.4,3232.1,0.00227369]
[1641951835938,0.77355,3232.2,3231.9,0.00341054]
[1641951836338,0.77355,3232.2,3231.9,2.64017099]
[1641951836538,0.77355,3232.2,3231.9,2.94017099]
[1641951836737,0.77355,3232.2,3232.0,0.00284211]
[1641951838589,0.77355,3232.2,3231.9,0.00341054]
[1641951839597,0.77355,3232.2,3231.9,2.64015496]
[1641951839796,0.77355,3232.2,3231.9,2.94015496]
[1641951839994,0.77355,3232.2,3232.0,0.00284211]
[1641951841598,0.77355,3232.2,3231.9,0.00341054]
[1641951842198,0.77355,3232.2,3231.9,2.94017943]
[1641951842443,0.77355,3232.2,3231.9,2.84017943]
[1641951842644,0.77355,3232.2,3232.0,0.00284211]
[1641951843243,0.77355,3232.2,3231.9,0.00341054]
[1641951843847,0.77355,3232.2,3231.9,2.6402086]
[1641951844244,0.77355,3232.2,3232.0,0.00284211]
[1641951845750,1.54704,3232.5,3231.9,0.00341054]
[1641951845948,0.77347,3232.7,3232.0,0.445]
[1641951846195,0.77347,3232.7,3232.0,0.745]
[1641951846398,0.77347,3232.7,3232.1,0.00227369]
[1641951846596,0.3,3232.6,3232.2,0.445]
[1641951846796,1.0735,3232.6,3232.2,0.745]
[1641951847004,1.0735,3232.6,3232.3,0.00113684]
[1641951847200,1.0735,3232.6,3232.3,0.44613684]
[1641951848602,0.07734,3232.5,3232.3,0.44613684]
[1641951849933,1.0735,3232.6,3232.3,0.44613684]
[1641951849934,1.15084,3232.6,3232.3,0.44613684]
[1641951851739,0.07734,3232.6,3232.3,0.74613684]
[1641951851940,0.0022737,3232.9,3232.3,0.74613684]
[1641951852341,0.00170527,3232.8,3232.3,0.74613684]
[1641951852745,0.00113685,3232.7,3232.3,0.74613684]
[1641951853781,0.00113685,3232.7,3232.3,1.51948464]
[1641951856391,0.00113685,3232.7,3232.5,0.7732525]
[1641951856589,0.00113685,3232.7,3232.6,4.095]
[1641951856990,0.00113685,3232.7,3232.6,4.395]
[1641951858856,0.00113685,3232.7,3232.6,5.695]
[1641951859055,0.00113685,3232.7,3232.6,15.60837758]
[1641951859459,15.008,3233.6,3232.6,15.60837758]
[1641951859460,15.008,3233.6,3233.5,6.56706145]
[1641951859658,3.9677,3234.7,3234.0,0.7728656]
[1641951859859,0.201078,3234.9,3234.1,3.2057273]
[1641951860061,0.77289,3235.1,3234.2,0.07728]
[1641951860062,0.123768,3235.1,3234.2,0.07728]
[1641951860258,0.01193689,3234.8,3234.7,0.0125667]
[1641951860459,0.07727,3236.2,3234.8,5.67727]
[1641951860658,0.07727,3236.2,3235.5,0.77252]
[1641951860860,3.9912,3236.4,3235.6,0.52224]
[1641951861099,0.07724,3236.3,3235.6,0.745]
[1641951861301,0.08576635,3236.3,3235.6,0.745]
[1641951862302,0.77266,3236.1,3235.6,0.445]
[1641951862510,0.07724,3236.0,3235.6,0.445]
[1641951862706,0.08406108,3236.0,3235.6,0.445]
[1641951862905,0.00625266,3235.9,3235.6,0.445]
[1641951863106,1.29670263,3235.7,3235.6,0.445]
[1641951863511,1.93102012,3235.7,3235.6,0.445]
[1641951863708,0.71156749,3235.7,3235.6,0.445]
[1641951863907,0.41156749,3235.7,3235.1,0.445]
[1641951864107,0.85006,3235.6,3235.1,0.445]
[1641951864307,1.15460739,3235.6,3235.1,0.445]
[1641951864510,0.00397897,3235.5,3235.1,0.445]
[1641951864711,0.07727,3235.4,3235.1,0.445]
[1641951864958,0.08068054,3235.4,3235.1,0.445]
[1641951865156,0.77569212,3235.3,3235.1,0.445]
[1641951865552,0.0022737,3235.2,3234.7,0.445]
[1641951865955,0.00170527,3235.1,3234.7,0.745]
[1641951866353,0.00113685,3235.0,3234.7,0.745]
[1641951866554,0.77405685,3235.0,3234.7,0.745]
[1641951866755,0.77292,3235.0,3234.7,0.745]
[1641951869209,3.86096857,3235.0,3234.7,0.445]
[1641951869409,0.77295,3234.9,3234.7,0.445]
[1641951871713,0.85022,3234.9,3234.7,0.445]
[1641951871911,0.07727,3234.9,3234.7,0.445]
[1641951872336,0.07727,3235.0,3234.7,0.445]
[1641951872543,0.07727,3235.1,3234.7,0.445]
[1641951872940,0.00113685,3235.0,3234.7,0.445]
[1641951876126,0.00113685,3235.0,3234.7,0.745]
[1641951876515,0.00113685,3235.0,3234.7,1.5177729]
[1641951878621,0.00113685,3235.0,3234.7,2.95555475]
[1641951880446,0.00113685,3235.0,3234.7,2.18278185]
[1641951881441,0.00113685,3235.0,3234.7,0.745]
[1641951882751,0.00113685,3235.0,3234.7,0.445]
[1641951883148,0.00113685,3235.0,3234.7,0.745]
[1641951883991,0.77406685,3235.0,3234.7,0.745]
[1641951884391,2.20828675,3235.0,3234.3,0.445]
[1641951884590,2.20828675,3235.0,3234.3,0.745]
[1641951884792,0.77297,3234.7,3234.4,0.00227369]
[1641951887445,3.14168369,3234.6,3234.4,0.00227369]
[1641951887647,3.21896369,3234.6,3234.4,0.00227369]
[1641951887847,3.21896369,3234.6,3233.9,0.00511581]
[1641951888048,0.77306,3234.4,3233.9,0.00511581]
[1641951891495,1.95060186,3234.4,3233.9,0.00511581]
[1641951892396,0.77306,3234.4,3233.9,0.00511581]
[1641951895351,1.88719891,3234.4,3233.9,0.00511581]
[1641951896365,0.2723349,3234.2,3233.9,0.00511581]
[1641951896561,0.07729,3234.1,3233.9,0.00511581]
[1641951896760,3.40629429,3234.1,3233.5,0.0073895]
[1641951897059,3.40629429,3234.1,3233.4,0.00795793]
[1641951897461,1.02159,3233.9,3233.3,0.00852635]
[1641951897661,1.02159,3233.9,3233.1,0.0096632]
[1641951897662,3.39120669,3233.8,3233.1,0.0096632]
[1641951897960,0.77327,3233.6,3233.0,0.01023162]
[1641951898162,0.07731,3233.5,3233.0,0.01023162]
[1641951898365,1.54843487,3233.4,3233.0,0.01023162]
[1641951898603,1.54843487,3233.4,3232.8,0.01136847]
[1641951898796,1.54843487,3233.4,3232.7,0.01193689]
[1641951898997,0.77329,3233.3,3232.7,0.01193689]
[1641951899395,1.84843487,3233.4,3232.6,2.34949499]
[1641951899396,0.07731,3233.2,3232.6,2.3620003]
[1641951899597,0.07731,3233.3,3232.7,0.01193689]
[1641951899998,0.07731,3233.3,3232.6,0.01250531]
[1641951900197,0.77336,3233.1,3232.6,0.01250531]
[1641951900397,0.07732,3233.0,3232.6,0.01250531]
[1641951901003,0.07732,3233.3,3232.6,0.01250531]
[1641951901797,0.85062,3233.3,3232.6,0.01250531]
[1641951902450,0.07732,3233.3,3232.6,0.01250531]
[1641951902952,0.07731,3233.5,3232.6,0.01250531]
[1641951903556,0.07731,3233.5,3233.0,0.7731797]
[1641951903754,0.07731,3233.7,3233.1,2.63553163]
[1641951903954,0.07731,3233.7,3233.1,2.64519483]
[1641951904154,0.07731,3233.7,3233.2,0.00909477]
[1641951904353,0.07731,3233.8,3233.2,0.00909477]
[1641951904554,4.06599994,3233.9,3233.2,1.13579481]
[1641951904754,4.06599994,3233.9,3233.3,2.509901]
[1641951904953,4.06599994,3233.9,3233.3,2.51842735]
[1641951904954,0.27639994,3233.9,3233.3,2.51842735]
[1641951905163,0.27639994,3233.9,3233.4,0.00795793]
[1641951906194,0.13819997,3233.9,3233.4,0.00795793]
[1641951909401,1.54628,3234.4,3233.4,0.00795793]
[1641951909402,0.07731,3234.6,3233.5,0.445]
[1641951909601,0.07731,3234.6,3233.5,0.745]
[1641951909602,0.23636868,3233.6,3233.5,0.745]
[1641951909846,0.23636868,3233.6,3233.5,3.80909715]
[1641951910146,0.23636868,3233.6,3233.5,4.80909715]
[1641951910352,0.23636868,3233.6,3233.5,11.70510095]
[1641951911051,6.868e-05,3233.6,3233.5,11.70510095]
[1641951911454,5.40446868,3234.9,3234.0,0.7729165]
[1641951911653,0.8502,3235.0,3234.1,3.34103273]
[1641951911853,0.8502,3235.0,3234.1,3.34501169]
[1641951912054,0.8502,3235.0,3234.2,0.00341054]
[1641951912453,0.8502,3235.0,3234.2,1.31172271]
[1641951912652,0.8502,3235.0,3234.3,3.63629826]
[1641951912856,0.07731,3235.0,3234.4,0.445]
[1641951913055,0.07727,3235.1,3234.5,3.09402859]
[1641951913255,0.07727,3235.1,3234.5,3.54073386]
[1641951913456,0.07897527,3235.1,3234.6,0.00113684]
[1641951916101,0.07897527,3235.1,3234.7,0.445]
[1641951916305,0.00170527,3235.1,3234.8,21.41074354]
[1641951916504,0.00170527,3235.1,3234.9,0.445]
[1641951916709,0.00170527,3235.1,3235.0,8.62748255]
[1641951916903,0.00170527,3235.1,3235.0,9.07248255]
[1641951917105,0.00170527,3235.1,3235.0,11.28997269]
[1641951917357,0.00170527,3235.1,3235.0,10.28997269]
[1641951917952,0.00170527,3235.1,3235.0,11.28997269]
[1641951920155,0.00976121,3235.1,3235.0,11.28997269]
[1641951922606,0.00976121,3235.1,3235.0,4.52248255]
[1641951924213,0.00976121,3235.1,3234.6,0.44613684]
[1641951924611,0.00113685,3235.0,3234.6,0.44613684]
[1641951925465,0.00113685,3235.0,3234.6,0.74613684]
[1641951925868,0.00113685,3235.0,3234.6,0.44613684]
[1641951927279,0.00113685,3235.0,3234.6,0.74613684]
[1641951927669,0.00113685,3235.0,3234.7,2.37555676]
[1641951927871,0.00113685,3235.0,3234.6,0.74613684]
[1641951930207,0.00805594,3234.8,3234.6,0.74613684]
[1641951931111,0.00805594,3234.8,3234.6,0.00113684]
[1641951931513,0.00805594,3234.8,3234.2,0.00341054]
[1641951932366,0.00805594,3234.8,3234.0,2.32311139]
[1641951932570,1.44879817,3234.8,3234.1,2.42203764]
[1641951932768,1.44879817,3234.8,3234.1,2.7260166]
[1641951932967,1.44879817,3234.8,3234.2,0.00341054]
[1641951933667,0.77292,3234.7,3234.2,0.30341054]
[1641951933868,0.77292,3234.7,3234.1,0.00397896]
[1641951934069,0.77292,3234.7,3234.3,0.00284212]
[1641951934271,0.77292,3234.7,3234.1,2.36646773]
[1641951934469,0.77292,3234.7,3234.2,0.00341054]
[1641951934977,0.00805594,3234.8,3234.2,0.00341054]
[1641951934978,0.00805594,3234.8,3234.4,2.3182151]
[1641951935171,0.00805594,3234.8,3234.5,3.24210716]
[1641951935370,0.00805594,3234.8,3234.5,3.54381243]
[1641951935570,0.00805594,3234.8,3234.6,0.00113684]
[1641951935871,0.00805594,3234.8,3234.7,5.995]
[1641951936103,0.00805594,3234.8,3234.7,9.03683608]
[1641951937507,0.00805594,3234.8,3234.7,10.40717857]
[1641951939954,0.00805594,3234.8,3234.7,11.40717857]
[1641951940559,0.00805594,3234.8,3234.7,10.03683608]
[1641951940958,0.00805594,3234.8,3234.7,9.88033806]
[1641951941360,0.00805594,3234.8,3234.7,8.88033806]
[1641951941559,0.00805594,3234.8,3234.7,8.76759605]
[1641951941762,0.00805594,3234.8,3234.7,6.295]
[1641951942361,0.00805594,3234.8,3234.7,8.73092972]
[1641951942962,0.00805594,3234.8,3234.7,6.295]
[1641951944607,0.00805594,3234.8,3234.7,0.745]
[1641951945010,0.00805594,3234.8,3234.7,3.695]
[1641951945609,0.00805594,3234.8,3234.7,3.25]
[1641951946014,0.00805594,3234.8,3234.7,0.3]
[1641951946219,0.00805594,3234.8,3234.6,0.00113684]
[1641951946914,0.00805594,3234.8,3234.6,0.30113684]
[1641951947119,1.5590849,3234.7,3234.6,0.00113684]
[1641951947792,1.5590849,3234.7,3234.2,0.00341054]
[1641951948798,2.3320549,3234.7,3234.2,0.00341054]
[1641951950395,1.56714084,3234.7,3234.2,0.00341054]
[1641951950795,1.56714084,3234.7,3234.0,0.00454739]
[1641951953018,0.07728,3234.6,3234.0,0.00454739]
[1641951953223,0.07728,3234.6,3233.7,0.00625266]
[1641951953418,0.07728,3234.6,3234.0,0.00454739]
[1641951953619,1.32566872,3234.3,3233.7,0.00625266]
[1641951953821,1.32566872,3234.3,3233.8,0.00568423]
[1641951954019,1.32566872,3234.3,3233.7,0.00625266]
[1641951954522,1.32566872,3234.3,3233.6,0.00682108]
[1641951954953,1.32566872,3234.3,3233.5,0.3]
[1641951954954,1.32566872,3234.3,3233.5,0.0073895]
[1641951955160,3.29510499,3234.2,3233.5,0.0073895]
[1641951955360,3.37239499,3234.2,3233.5,0.0073895]
[1641951955660,1.0,3234.1,3233.2,0.00909477]
[1641951955863,3.0672383,3234.0,3233.2,0.00909477]
[1641951956062,1.49556346,3233.4,3233.2,0.00909477]
[1641951956259,0.07731,3233.3,3232.8,0.01136847]
[1641951956459,0.07731,3233.3,3232.6,0.01250531]
[1641951956658,1.49556346,3233.4,3232.6,0.01250531]
[1641951957665,0.07731,3233.7,3232.6,0.78570891]
[1641951957864,0.07731,3233.7,3232.7,0.445]
[1641951958063,3.7054,3233.8,3232.7,0.75693689]
[1641951958263,3.7054,3233.8,3232.8,0.01136847]
[1641951958707,3.7054,3233.8,3232.8,1.01136847]
[1641951959110,3.7054,3233.8,3232.7,5.22716912]
[1641951959111,4.96098339,3233.8,3232.9,2.64677916]
[1641951959310,5.03829339,3233.8,3232.9,2.64677916]
[1641951959513,5.03829339,3233.8,3233.0,0.31023162]
[1641951959716,4.96098339,3233.8,3233.0,2.24580484]
[1641951959913,4.96098339,3233.8,3233.1,0.0096632]
[1641951960313,0.00805594,3233.3,3233.1,0.3096632]
[1641951960712,0.00805594,3233.3,3233.2,4.20909477]
[1641951961817,0.00805594,3233.3,3233.2,5.55909477]
[1641951962869,5.55,3233.2,3232.7,6.9681736]
[1641951963169,6.5199735,3232.7,3231.1,2.42268068]
[1641951963367,0.01262983,3232.4,3230.6,7.65799864]
[1641951963569,0.01797546,3232.3,3231.3,0.01080005]
[1641951963773,0.7738983,3232.1,3231.3,0.01080005]
[1641951963966,0.7738983,3232.1,3230.5,0.123697]
[1641951963967,1.27624162,3231.6,3230.6,0.01477901]
[1641951964167,5.557,3230.7,3230.6,0.01477901]
[1641951964368,5.557,3230.7,3230.1,3.90032974]
[1641951964369,4.3,3230.6,3230.1,3.90032974]
[1641951964568,0.5320325,3230.5,3230.1,3.90032974]
[1641951964769,0.5320325,3230.5,3230.2,2.82968462]
[1641951964770,6.002,3230.5,3230.2,2.82968462]
[1641951964971,6.002,3230.5,3230.2,0.0022737]
[1641951965169,6.002,3230.5,3230.3,0.00170527]
[1641951965369,0.445,3230.5,3230.1,2.82741092]
[1641951965569,0.445,3230.5,3230.1,0.00284212]
[1641951965770,0.52786491,3230.4,3230.1,2.83025304]
[1641951965971,0.445,3230.3,3230.1,0.00284212]
[1641951967213,0.445,3230.8,3230.1,0.00284212]
[1641951967421,0.52238,3230.8,3230.1,0.00284212]
[1641951967621,0.00227369,3231.0,3230.8,5.5]
[1641951967819,0.00227369,3231.0,3230.8,6.2007]
[1641951968019,4.0882,3231.6,3230.8,1.0007]
[1641951968220,0.13819997,3231.7,3230.8,0.7007]
[1641951968419,0.13819997,3231.7,3230.8,1.0007]
[1641951968420,0.00511581,3231.5,3230.8,1.0007]
[1641951968621,0.00511581,3231.5,3231.0,1.35811064]
[1641951968820,0.00454738,3231.4,3231.0,1.65811064]
[1641951969221,0.00397896,3231.3,3231.0,1.65811064]
[1641951969422,0.00397896,3231.3,3231.0,0.3]
[1641951969621,0.00341054,3231.2,3230.7,1.51157523]
[1641951969867,0.00341054,3231.2,3230.7,19.60157523]
[1641951970061,0.00284211,3231.1,3230.7,19.60157523]
[1641951970263,0.00805594,3230.9,3230.7,19.60157523]
[1641951970457,0.00805594,3230.9,3230.8,6.81502728]
[1641951970861,0.00805594,3230.9,3230.8,1.21502728]
[1641951971059,0.00805594,3230.9,3230.7,0.3]
[1641951971261,0.00805594,3230.9,3230.1,4.11059384]
[1641951971465,0.00113684,3230.8,3230.1,4.38014212]
[1641951971668,0.00113684,3230.8,3230.2,0.03993456]
[1641951972065,0.00113684,3230.8,3230.4,19.53194895]
[1641951972267,0.00113684,3230.8,3230.5,0.3]
[1641951972465,0.52774209,3230.7,3230.4,3.14850789]
[1641951972668,0.97274209,3230.7,3230.3,0.00170527]
[1641951972866,0.31406646,3230.4,3230.3,0.00170527]
[1641951973065,0.31406646,3230.4,3229.7,0.00511581]
[1641951973708,0.31406646,3230.4,3230.2,1.42741733]
[1641951974108,0.31406646,3230.4,3230.3,2.60170527]
[1641951974313,4.65767015,3231.1,3230.4,5.564]
[1641951974510,4.65767015,3231.1,3230.4,5.59722945]
[1641951974709,0.00113685,3231.0,3230.5,18.09170527]
[1641951974910,0.00113685,3231.0,3230.9,7.12197399]
[1641951975309,0.00113685,3231.0,3230.9,9.11495568]
[1641951975709,0.00113685,3231.0,3230.9,27.20495568]
[1641951975914,0.00113685,3231.0,3230.9,27.24305855]
[1641951979163,0.00113685,3231.0,3230.9,9.15305855]
[1641951979572,0.00113685,3231.0,3230.9,9.11495568]
[1641951980068,3.685e-05,3231.0,3230.9,7.2]
[1641951980266,3.685e-05,3231.0,3230.9,10.55385834]
[1641951980766,3.685e-05,3231.0,3230.9,28.64385834]
[1641951982008,3.685e-05,3231.0,3230.9,28.17015834]
[1641951985156,3.685e-05,3231.0,3230.9,28.61515834]
[1641951985360,4.29573795,3232.6,3231.0,5.6]
[1641951985556,3.9633,3232.6,3231.5,18.09]
[1641951985755,0.00852635,3232.5,3231.6,3.08141423]
[1641951985958,0.00852635,3232.5,3232.4,3.58145116]
[1641951986158,0.13819997,3233.1,3231.8,2.77734977]
[1641951986358,0.13819997,3233.1,3231.7,2.542065]
[1641951986556,0.00795793,3232.4,3231.4,2.47724672]
[1641951986856,0.00738951,3232.3,3231.4,21.86724672]
[1641951987261,0.00682108,3232.2,3232.1,4.41622402]
[1641951987660,0.01136847,3232.2,3232.1,4.41622402]
[1641951987862,0.01136847,3232.2,3232.1,2.9]
[1641951994556,0.01136847,3232.2,3232.1,8.1374667]
[1641951994755,0.01136847,3232.2,3232.1,9.2003667]
[1641951995159,0.01136847,3232.2,3232.1,28.2903667]
[1641951998207,0.01136847,3232.2,3232.1,27.2903667]
[1641951998610,6.847e-05,3232.2,3232.1,26.78584528]
[1641951998911,6.847e-05,3232.2,3232.1,25.36494805]
[1641951999954,6.847e-05,3232.2,3232.1,24.36494805]
[1641952000953,6.847e-05,3232.2,3232.1,25.36494805]
[1641952006315,6.847e-05,3232.2,3232.1,25.33113007]
[1641952007367,6.847e-05,3232.2,3232.1,25.36422612]
[1641952009262,6.847e-05,3232.2,3232.1,7.27422612]
[1641952009562,6.847e-05,3232.2,3232.1,6.21132612]
[1641952009861,6.847e-05,3232.2,3232.1,6.13077571]
[1641952010060,6.847e-05,3232.2,3232.1,6.14117448]
[1641952010264,6.847e-05,3232.2,3232.1,3.90504734]
[1641952010464,6.847e-05,3232.2,3232.1,6.12850608]
[1641952010664,6.847e-05,3232.2,3232.1,2.90504734]
[1641952012206,6.847e-05,3232.2,3232.1,5.25813596]
[1641952012409,6.847e-05,3232.2,3232.1,5.29769918]
[1641952012610,6.847e-05,3232.2,3232.1,5.55813596]
[1641952013610,6.847e-05,3232.2,3232.1,23.6863536]
[1641952013812,6.847e-05,3232.2,3232.1,23.64813596]
[1641952014013,6.847e-05,3232.2,3232.1,5.59288536]
[1641952014211,6.847e-05,3232.2,3232.1,5.55813596]
[1641952014611,6.847e-05,3232.2,3232.1,3.20504734]
[1641952014866,6.847e-05,3232.2,3232.1,5.43607595]
[1641952016067,6.847e-05,3232.2,3232.1,3.20504734]
[1641952017567,0.32050881,3233.1,3232.1,3.20504734]
[1641952017969,0.32050881,3233.1,3232.2,0.00447892]
[1641952018811,0.32050881,3233.1,3232.6,1.39761768]
[1641952019113,0.32050881,3233.1,3232.7,0.0016368]
[1641952025966,0.01708139,3233.0,3232.7,0.0016368]
[1641952026214,0.32050881,3233.1,3232.7,0.0016368]
[1641952027016,0.32050881,3233.1,3232.2,0.00447892]
[1641952027816,0.32050881,3233.1,3232.5,1.23494647]
[1641952028016,0.32050881,3233.1,3232.5,1.53494647]
[1641952028218,0.32050881,3233.1,3232.6,0.00220522]
[1641952029020,1.09391881,3233.1,3232.6,0.00220522]
[1641952029216,1.09391881,3233.1,3231.8,0.00675261]
[1641952029897,1.09400291,3233.1,3231.8,0.00675261]
[1641952030587,1.86750291,3233.1,3231.8,0.00675261]
[1641952030789,2.64101291,3233.1,3231.8,0.00675261]
[1641952030989,0.77349,3232.8,3231.8,0.00675261]
[1641952031994,2.73383898,3232.8,3231.9,1.38789728]
[1641952032396,2.73383898,3232.8,3232.0,0.00561576]
[1641952032594,1.96032898,3232.8,3232.0,0.00561576]
[1641952033497,0.77352,3232.6,3232.0,0.00561576]
[1641952033730,1.54735,3232.4,3232.0,0.00561576]
[1641952033926,1.54735,3232.4,3231.4,0.00902631]
[1641952033927,0.45775108,3232.3,3231.4,0.00902631]
[1641952034130,0.45775108,3232.3,3231.1,0.01073158]
[1641952034529,1.18256492,3232.0,3231.1,1.55513302]
[1641952034727,1.54753,3231.7,3230.7,0.01300527]
[1641952034928,0.77387,3231.6,3231.2,0.01016315]
[1641952035132,2.3692,3231.7,3229.9,9.68099748]
[1641952035133,1.54779,3231.4,3230.5,0.01414212]
[1641952035327,1.54779,3231.4,3230.0,0.01698423]
[1641952035328,0.445,3231.3,3230.0,0.01698423]
[1641952035830,1.74326,3230.8,3230.2,1.42545265]
[1641952036028,2.03146,3230.8,3230.2,1.42545265]
[1641952036328,2.03146,3230.8,3230.3,0.01527896]